bitfinex/quotes_ETHUSD_20240731
["timestamp","ask_amount","ask_price","bid_price","bid_amount"]
[1722434782062,3.51071053,3343.7,3343.6,0.8]
[1722434782222,6.37083156,3343.7,3343.6,0.8]
[1722434782421,6.50139277,3343.7,3343.6,0.8]
[1722434783336,3.38014156,3343.7,3343.6,0.8]
[1722434783527,6.37083156,3343.7,3343.6,0.8]
[1722434783884,3.38014156,3343.7,3343.6,0.8]
[1722434784260,2.2937,3343.7,3343.6,0.8]
[1722434785108,4.48508385,3343.7,3343.6,0.8]
[1722434785260,7.47582137,3343.7,3343.6,0.8]
[1722434785459,2.2937,3343.7,3343.6,0.8]
[1722434785760,4.48515165,3343.7,3343.6,0.8]
[1722434785958,5.79063603,3343.7,3343.6,0.8]
[1722434786368,3.59918438,3343.7,3343.6,0.8]
[1722434786557,5.79052391,3343.7,3343.6,0.8]
[1722434786955,3.59918438,3343.7,3343.6,0.8]
[1722434787350,8.78101861,3343.7,3343.6,0.8]
[1722434787950,6.58987438,3343.7,3343.6,0.8]
[1722434788204,8.78116053,3343.7,3343.6,0.8]
[1722434788379,3.59918438,3343.7,3343.6,0.8]
[1722434788689,5.79047053,3343.7,3343.6,0.8]
[1722434788851,3.59918438,3343.7,3343.6,0.8]
[1722434789046,2.2937,3343.7,3343.6,0.8]
[1722434789248,7.47567615,3343.7,3343.6,0.8]
[1722434789959,5.28439,3343.7,3343.6,0.8]
[1722434790159,7.47547713,3343.7,3343.6,0.8]
[1722434790463,4.48477833,3343.7,3343.6,0.8]
[1722434790664,5.53629738,3343.7,3343.6,0.8]
[1722434791419,8.52698738,3343.7,3343.6,0.8]
[1722434791755,6.33591236,3343.7,3343.6,0.8]
[1722434792184,8.52710939,3343.7,3343.6,0.8]
[1722434792495,8.52709668,3343.7,3343.6,0.8]
[1722434792704,6.33591236,3343.7,3343.6,0.8]
[1722434793106,6.46647975,3343.7,3343.6,0.8]
[1722434793627,9.32660236,3343.7,3343.6,0.8]
[1722434793765,18.03632204,3343.7,3343.6,0.8]
[1722434793968,12.45717107,3343.7,3343.6,0.8]
[1722434796526,15.44786107,3343.7,3343.6,0.8]
[1722434796678,15.31729236,3343.7,3343.6,0.8]
[1722434797092,12.4571777,3343.7,3343.6,0.8]
[1722434797529,15.4478677,3343.7,3343.6,0.8]
[1722434798942,18.56170836,3343.7,3343.6,0.8]
[1722434799314,18.55239171,3343.7,3343.6,0.8]
[1722434799908,18.42181637,3343.7,3343.6,0.8]
[1722434800137,15.31729236,3343.7,3343.6,0.8]
[1722434800340,18.55240585,3343.7,3343.6,0.8]
[1722434800848,15.44788184,3343.7,3343.6,0.8]
[1722434801299,18.55240585,3343.7,3343.6,0.8]
[1722434801500,15.56171585,3343.7,3343.6,0.8]
[1722434801744,15.44788184,3343.7,3343.6,0.8]
[1722434801894,12.45719184,3343.7,3343.6,0.8]
[1722434802935,15.0434035,3343.7,3343.6,0.8]
[1722434803335,14.91247799,3343.7,3343.6,0.8]
[1722434803871,15.04305533,3343.7,3343.6,0.8]
[1722434804085,12.05236533,3343.7,3343.6,0.8]
[1722434804242,7.4734025,3343.7,3343.6,0.8]
[1722434804568,5.28439,3343.7,3343.6,0.8]
[1722434805124,8.27508,3343.7,3343.6,0.8]
[1722434805325,5.28439,3343.7,3343.6,0.8]
[1722434805642,2.9909,3343.5,3342.6,2.99168]
[1722434805842,1.87587298,3343.4,3342.6,2.99168]
[1722434806043,1.87587298,3343.5,3342.7,0.12591815]
[1722434806241,1.87587298,3343.4,3342.7,0.12591815]
[1722434806478,1.87587366,3343.4,3342.5,2.9917]
[1722434806661,4.86679366,3343.5,3342.8,0.1259171]
[1722434806863,4.86679366,3343.5,3342.6,1.094311]
[1722434807035,4.86679366,3343.5,3342.6,4.085981]
[1722434807233,1.87587366,3343.5,3342.7,3.11748815]
[1722434807533,1.87587366,3343.5,3342.8,2.99143]
[1722434807734,1.87587366,3343.6,3343.0,2.99125]
[1722434807927,1.87587366,3343.6,3343.1,0.12591394]
[1722434808128,1.87587366,3343.6,3342.9,0.42116592]
[1722434808430,1.87587366,3343.5,3342.9,0.42116592]
[1722434808658,1.87587366,3343.5,3343.0,0.12591499]
[1722434809057,1.87587366,3343.5,3343.0,0.47976508]
[1722434809472,10.40074,3343.7,3343.0,0.47976508]
[1722434809675,1.87565612,3343.5,3343.0,0.47976508]
[1722434811684,1.87565612,3343.6,3343.0,0.47976508]
[1722434811883,1.87565612,3343.5,3343.0,0.12591499]
[1722434812891,1.87630117,3343.6,3343.5,2.99086]
[1722434813038,2.58577755,3344.2,3343.5,3.229182]
[1722434813039,9.28630117,3344.2,3343.5,3.229182]
[1722434813239,7.41,3344.2,3344.1,2.99034]
[1722434813682,7.41,3344.2,3344.1,3.11591478]
[1722434813893,7.41,3344.2,3344.1,6.10625478]
[1722434815489,9.28630117,3345.0,3344.8,2.98971]
[1722434815779,1.87648977,3345.2,3344.9,0.12538239]
[1722434816078,1.87648977,3345.3,3344.9,0.12538239]
[1722434816437,1.87648977,3345.1,3344.7,2.98979]
[1722434816637,1.87648977,3345.2,3344.7,2.98979]
[1722434816852,1.87648977,3345.1,3344.8,0.12512402]
[1722434817250,1.87648977,3345.2,3344.7,2.98979]
[1722434817481,1.87648977,3345.2,3344.9,0.12512297]
[1722434817647,1.87648977,3345.2,3344.7,2.98979]
[1722434817648,1.87648977,3345.2,3344.8,3.11477402]
[1722434817851,19.84,3345.5,3344.9,2.98954]
[1722434818194,19.84,3345.5,3345.2,2.98935]
[1722434818539,19.84,3345.5,3345.3,0.12503013]
[1722434818896,1.8766517,3345.7,3345.2,2.98935]
[1722434819043,1.8766517,3345.7,3345.4,0.12502908]
[1722434819044,1.87577339,3345.7,3345.4,0.12502908]
[1722434819239,1.87577339,3345.6,3345.3,0.12494807]
[1722434819472,1.87577339,3345.7,3345.2,2.98935]
[1722434819744,1.87577339,3345.8,3345.3,0.12494807]
[1722434819942,1.87577339,3345.7,3345.0,2.98947]
[1722434820140,1.87577339,3345.6,3345.1,0.12495017]
[1722434820444,2.495,3345.5,3344.7,2.98979]
[1722434820680,4.37077339,3345.5,3344.5,2.98991]
[1722434820848,1.87577339,3345.4,3344.8,0.12480566]
[1722434821180,2.495,3345.5,3344.9,0.12482757]
[1722434821181,1.47697734,3345.3,3344.9,0.12482757]
[1722434821696,1.47697734,3345.3,3344.4,2.99001]
[1722434821864,1.47697734,3345.3,3344.0,2.99039]
[1722434822069,1.47697734,3345.3,3344.5,0.12483178]
[1722434822284,1.47697734,3345.3,3344.4,2.99007]
[1722434822452,0.88354371,3345.2,3344.6,0.12489964]
[1722434822806,0.88354371,3345.2,3344.7,0.12489859]
[1722434823218,0.88354371,3345.2,3344.1,2.99033]
[1722434823670,0.88354371,3345.2,3344.3,2.99015]
[1722434823866,0.88354371,3345.2,3344.5,2.98997]
[1722434824066,0.88354371,3345.2,3344.4,0.12428766]
[1722434824067,0.72348908,3345.1,3344.4,0.12428766]
[1722434824286,0.72348908,3345.1,3344.6,0.12432494]
[1722434824516,0.72348908,3345.1,3344.5,0.12432599]
[1722434824719,0.72348908,3345.1,3344.1,2.99029]
[1722434825079,2.495,3345.5,3344.2,0.18413164]
[1722434825287,9.28341354,3345.6,3345.0,2.98947]
[1722434825645,7.41,3345.6,3345.1,0.12436892]
[1722434828403,1.55930172,3346.2,3345.6,2.98894]
[1722434828590,1.90550982,3346.6,3345.6,2.98894]
[1722434828792,0.3462081,3346.6,3345.7,0.12421164]
[1722434829406,0.3462081,3346.6,3345.3,2.631]
[1722434829407,0.3462081,3346.6,3345.9,2.98866]
[1722434829733,0.3462081,3346.6,3346.0,0.12420848]
[1722434829900,0.3462081,3346.6,3346.0,3.11282848]
[1722434830103,0.3462081,3346.6,3346.1,2.98848]
[1722434830319,0.474241,3346.7,3346.2,0.12420638]
[1722434830500,0.474241,3346.7,3346.3,2.98837]
[1722434830700,0.474241,3346.7,3346.4,0.12420428]
[1722434831141,0.474241,3346.7,3346.2,2.98839]
[1722434831291,0.474241,3346.7,3346.3,3.11257533]
[1722434831692,0.474241,3346.7,3346.3,0.12420533]
[1722434832432,0.474241,3346.7,3346.3,3.11254533]
[1722434832637,0.474241,3346.7,3346.3,0.12420533]
[1722434833391,0.474241,3346.7,3346.3,3.11252533]
[1722434833622,0.474241,3346.7,3346.3,0.12420533]
[1722434833995,0.474241,3346.7,3346.2,2.98843]
[1722434834196,0.474241,3346.7,3346.4,0.12372861]
[1722434834433,0.474241,3346.7,3346.3,0.12372966]
[1722434834637,0.474241,3346.7,3346.5,0.12372756]
[1722434834804,0.474241,3346.7,3346.6,2.9881]
[1722434835010,0.474241,3346.7,3346.6,6.09950664]
[1722434836236,0.474241,3346.7,3346.6,3.11140664]
[1722434837757,0.474241,3346.7,3346.6,0.12330664]
[1722434839533,0.474241,3346.7,3344.9,7.28]
[1722434839534,2.726841,3346.7,3345.9,2.98866]
[1722434839763,2.726841,3346.7,3346.1,2.98854]
[1722434839921,2.726841,3346.7,3346.0,0.1232113]
[1722434840109,2.726841,3346.7,3346.1,3.11175698]
[1722434840330,2.726841,3346.7,3346.1,0.12320698]
[1722434840536,3.2983011,3346.7,3346.1,0.12320698]
[1722434840761,2.726841,3346.7,3345.5,2.98906]
[1722434840976,10.136841,3346.7,3345.5,2.98906]
[1722434841146,2.98813,3346.6,3345.6,3.11221223]
[1722434841347,10.136841,3346.7,3345.7,2.9889]
[1722434841348,13.124861,3346.7,3345.7,2.9889]
[1722434841583,10.136841,3346.7,3345.8,3.10791657]
[1722434841778,2.98816,3346.6,3345.8,0.11910657]
[1722434842161,10.136841,3346.7,3345.8,0.11910657]
[1722434842162,2.98825,3346.5,3345.8,0.11910657]
[1722434842348,2.98825,3346.5,3345.3,5.98926]
[1722434842552,2.98838,3346.3,3345.4,0.11911078]
[1722434843479,0.597663,3346.3,3345.4,0.11911078]
[1722434843663,2.98823,3346.5,3345.4,0.11911078]
[1722434843664,2.98834,3346.4,3345.4,0.11911078]
[1722434844070,2.98837,3346.3,3345.4,0.11911078]
[1722434844251,10.136841,3346.7,3345.4,0.11911078]
[1722434844252,2.98832,3346.4,3345.4,0.11911078]
[1722434844938,10.136841,3346.7,3345.4,0.11911078]
[1722434844939,2.98853,3346.2,3345.4,0.11911078]
[1722434846882,2.98856,3346.1,3345.4,0.11911078]
[1722434847051,2.98833,3346.4,3345.4,0.11911078]
[1722434847052,2.98842,3346.3,3345.4,0.11911078]
[1722434847259,2.457,3345.9,3345.4,0.11911078]
[1722434847461,2.98892,3345.7,3344.5,8.47788]
[1722434847774,2.98906,3345.6,3344.6,2.98988]
[1722434847976,2.98906,3345.6,3345.1,0.11165739]
[1722434848181,0.544573,3345.8,3345.1,0.11165739]
[1722434848993,2.457,3345.9,3345.1,0.11165739]
[1722434849161,2.98891,3345.7,3345.1,0.11165739]
[1722434849366,2.98882,3345.8,3345.1,0.11165739]
[1722434849767,2.98894,3345.7,3345.1,0.11165739]
[1722434850087,5.27415,3345.2,3345.1,0.11165739]
[1722434850294,6.100483,3345.2,3345.1,0.11165739]
[1722434850452,6.100483,3345.2,3345.0,0.3]
[1722434851112,2.98944,3345.1,3345.0,0.3]
[1722434851622,5.97888,3345.1,3345.0,0.3]
[1722434851802,14.25312,3345.1,3345.0,0.3]
[1722434851949,15.7610653,3345.1,3345.0,0.3]
[1722434852916,12.7716253,3345.1,3345.0,0.3]
[1722434853598,9.7821853,3345.1,3345.0,0.3]
[1722434853799,2.2848,3345.1,3345.0,0.3]
[1722434854819,5.27424,3345.1,3345.0,0.3]
[1722434855224,8.26368,3345.1,3345.0,0.3]
[1722434855614,5.27424,3345.1,3345.0,0.3]
[1722434855923,8.26368,3345.1,3345.0,0.3]
[1722434856233,9.54476043,3345.1,3345.0,0.3]
[1722434856379,14.10511479,3345.1,3345.0,0.3]
[1722434856580,12.54476043,3345.1,3345.0,0.3]
[1722434857181,15.53420043,3345.1,3345.0,0.3]
[1722434857581,17.40718079,3345.1,3345.0,0.3]
[1722434857828,15.53420043,3345.1,3345.0,0.3]
[1722434858028,16.08420043,3345.1,3345.0,0.3]
[1722434858233,12.54476043,3345.1,3345.0,0.3]
[1722434858416,11.42830804,3345.1,3345.0,0.3]
[1722434858589,9.55532043,3345.1,3345.0,0.3]
[1722434859631,6.56588043,3345.1,3345.0,0.3]
[1722434859828,9.55532043,3345.1,3345.0,0.3]
[1722434860185,11.11662889,3345.1,3345.0,0.3]
[1722434860739,1.56133564,3345.2,3345.0,0.3]
[1722434860943,1.56133564,3345.3,3345.0,0.3]
[1722434861346,2.98944,3345.1,3345.0,0.3]
[1722434861654,1.56133564,3345.2,3345.0,0.3]
[1722434861841,0.75398856,3345.1,3345.0,0.3]
[1722434861999,2.3153242,3345.1,3345.0,0.3]
[1722434862198,2.98944,3345.1,3345.0,0.3]
[1722434862599,4.55064023,3345.1,3345.0,0.3]
[1722434862848,1.56120023,3345.2,3345.0,0.3]
[1722434863062,5.98926,3345.4,3345.0,0.3]
[1722434863232,2.98932,3345.3,3345.0,0.3]
[1722434863419,2.98944,3345.1,3345.0,0.3]
[1722434863960,4.55064023,3345.1,3345.0,0.3]
[1722434864161,2.98944,3345.1,3345.0,0.3]
[1722434864768,5.97888,3345.1,3345.0,0.3]
[1722434865075,1.00408202,3345.2,3345.0,0.5]
[1722434865356,1.56093487,3345.1,3345.0,0.5]
[1722434865579,3.99343202,3345.2,3345.0,0.5]
[1722434865776,5.89196515,3345.1,3345.0,0.5]
[1722434865951,4.33114872,3345.1,3345.0,0.5]
[1722434866572,2.90256793,3345.1,3345.0,0.5]
[1722434866775,1.56085921,3345.1,3345.0,0.5]
[1722434867076,1.56085921,3345.2,3345.0,0.5]
[1722434867439,1.56085921,3345.2,3345.1,0.11273709]
[1722434867635,1.56085921,3345.3,3345.1,0.11273709]
[1722434868045,2.4903,3345.5,3345.1,0.11273709]
[1722434868046,4.05115921,3345.5,3345.1,0.11273709]
[1722434868360,1.56085921,3345.4,3345.1,0.11273709]
[1722434868563,1.56085921,3345.4,3345.0,0.5]
[1722434868772,0.4521957,3345.7,3345.0,0.5]
[1722434868941,1.56046517,3345.5,3345.1,0.11251054]
[1722434871777,2.4517,3345.1,3345.0,0.7]
[1722434871983,6.25237461,3345.1,3345.0,0.7]
[1722434872781,3.26293461,3345.1,3345.0,0.7]
[1722434872978,2.4517,3345.1,3345.0,0.7]
[1722434873536,5.44114,3345.1,3345.0,0.7]
[1722434873937,10.30345159,3345.1,3345.0,0.7]
[1722434875077,7.31401159,3345.1,3345.0,0.7]
[1722434875240,5.44114,3345.1,3345.0,0.7]
[1722434875440,11.41333657,3345.1,3345.0,0.7]
[1722434876091,6.55131677,3345.1,3345.0,0.7]
[1722434876594,9.54075677,3345.1,3345.0,0.7]
[1722434876793,12.54075677,3345.1,3345.0,0.7]
[1722434878771,9.55131677,3345.1,3345.0,0.7]
[1722434879270,8.44114,3345.1,3345.0,0.7]
[1722434879497,11.43058,3345.1,3345.0,0.7]
[1722434881266,14.42002,3345.1,3345.0,0.7]
[1722434882290,17.13418153,3345.1,3345.0,0.7]
[1722434882500,14.55055055,3345.1,3345.0,0.7]
[1722434882681,16.9937858,3345.1,3345.0,0.7]
[1722434882861,14.0043458,3345.1,3345.0,0.7]
[1722434883256,13.0724541,3345.1,3345.0,0.7]
[1722434883493,10.88437525,3345.1,3345.0,0.7]
[1722434883698,8.57166128,3345.1,3345.0,0.7]
[1722434884059,11.56110128,3345.1,3345.0,0.7]
[1722434884664,14.01786382,3345.1,3345.0,0.7]
[1722434884874,11.43058,3345.1,3345.0,0.7]
[1722434885062,14.14838648,3345.1,3345.0,0.7]
[1722434885263,15.94201392,3345.1,3345.0,0.7]
[1722434885473,13.3547301,3345.1,3345.0,0.7]
[1722434885678,10.3652901,3345.1,3345.0,0.7]
[1722434885887,6.11996266,3345.1,3345.0,0.7]
[1722434886102,3.13052266,3345.1,3345.0,0.7]
[1722434886308,8.18060416,3345.1,3345.0,0.7]
[1722434886490,6.11994906,3345.1,3345.0,0.7]
[1722434886716,9.10938906,3345.1,3345.0,0.7]
[1722434886908,12.94762483,3345.1,3345.0,0.7]
[1722434887107,10.35905295,3345.1,3345.0,0.7]
[1722434887315,15.2020385,3345.1,3345.0,0.7]
[1722434887484,12.61215295,3345.1,3345.0,0.7]
[1722434887820,12.48164389,3345.1,3345.0,0.7]
[1722434888180,12.6121691,3345.1,3345.0,0.7]
[1722434888827,6.6332891,3345.1,3345.0,0.7]
[1722434889127,3.13052521,3345.1,3345.0,0.7]
[1722434889336,2.19344679,3345.1,3345.0,0.81281694]
[1722434889537,2.19344679,3345.3,3345.0,0.81281694]
[1722434890036,3.4411057,3345.7,3345.0,0.7]
[1722434890037,1.88021308,3345.1,3345.0,0.7]
[1722434890562,2.19344679,3345.3,3345.1,2.98942]
[1722434890701,1.88069027,3345.3,3345.1,2.3421]
[1722434890902,7.41,3345.8,3345.1,2.3421]
[1722434890903,1.88059421,3345.2,3345.1,2.3421]
[1722434891345,2.19402658,3345.5,3345.0,0.7]
[1722434891544,1.88119768,3345.1,3345.0,0.7]
[1722434891759,2.19402658,3345.3,3345.0,0.7]
[1722434891928,2.19402658,3345.2,3345.0,0.7]
[1722434892512,6.10937405,3345.1,3345.0,0.7]
[1722434892912,9.10937405,3345.1,3345.0,0.7]
[1722434893498,12.21389806,3345.1,3345.0,0.7]
[1722434893900,3.13049405,3345.1,3345.0,0.7]
[1722434894150,2.59437576,3345.1,3345.0,0.80871624]
[1722434894449,0.13050468,3345.1,3345.0,0.80871624]
[1722434895561,2.72488044,3345.1,3345.0,0.80871624]
[1722434895839,0.13050468,3345.1,3345.0,0.80871624]
[1722434896043,2.72488044,3345.1,3345.0,0.80871624]
[1722434896203,0.13050468,3345.1,3345.0,0.80871624]
[1722434896614,0.13050468,3345.1,3345.0,0.7]
[1722434896913,11.67417272,3345.1,3345.0,0.80870967]
[1722434897067,11.40168468,3345.1,3345.0,0.80870967]
[1722434897266,11.40168468,3345.1,3345.0,0.7]
[1722434897570,11.40171491,3345.1,3345.0,0.7]
[1722434897763,11.53224437,3345.1,3345.0,0.7]
[1722434897973,9.69602881,3345.1,3345.0,0.7]
[1722434898187,3.26106437,3345.1,3345.0,0.7]
[1722434898694,3.25050437,3345.1,3345.0,0.7]
[1722434898853,9.36451814,3345.1,3345.0,0.7]
[1722434899038,6.25050437,3345.1,3345.0,0.3]
[1722434899238,6.25050437,3345.1,3345.0,0.5]
[1722434899439,7.17448581,3345.1,3345.0,0.5]
[1722434899893,10.16392581,3345.1,3345.0,0.5]
[1722434900764,10.16391928,3345.1,3345.0,0.5]
[1722434901958,13.27828935,3345.1,3345.0,0.5]
[1722434902162,10.16391928,3345.1,3345.0,0.5]
[1722434902371,13.27827344,3345.1,3345.0,0.5]
[1722434902659,10.16391928,3345.1,3345.0,0.5]
[1722434903255,10.16391928,3345.1,3345.0,0.7]
[1722434903751,10.03339635,3345.1,3345.0,0.7]
[1722434903977,10.16392228,3345.1,3345.0,0.7]
[1722434906568,10.03338737,3345.1,3345.0,0.7]
[1722434906742,9.90286144,3345.1,3345.0,0.7]
[1722434906941,10.03337797,3345.1,3345.0,0.7]
[1722434907390,7.04393797,3345.1,3345.0,0.9]
[1722434907778,13.14792144,3345.1,3345.0,0.9]
[1722434907975,9.2345,3345.1,3345.0,0.9]
[1722434908194,3.13051653,3345.1,3345.0,0.9]
[1722434908690,3.13051653,3345.1,3345.0,0.99812239]
[1722434909055,0.13051653,3345.1,3345.0,0.99812239]
[1722434909470,2.19662759,3345.1,3345.0,0.99812239]
[1722434909667,2.19662759,3345.2,3345.0,1.39691463]
[1722434909874,2.19662759,3345.1,3345.0,1.39691463]
[1722434910204,2.19643258,3345.3,3345.0,1.39691463]
[1722434910507,2.98892,3345.7,3345.0,1.39691463]
[1722434910508,2.19643258,3345.2,3345.0,1.39691463]
[1722434910681,2.19643258,3345.2,3345.0,0.99812239]
[1722434910855,0.13049094,3345.1,3345.0,0.99812239]
[1722434911055,0.13049094,3345.1,3345.0,0.9]
[1722434911295,5.71446692,3345.1,3345.0,0.9]
[1722434911613,3.11993094,3345.1,3345.0,1.19802424]
[1722434911809,0.13049094,3345.1,3345.0,1.1]
[1722434912019,3.11993094,3345.1,3345.0,1.1]
[1722434912220,0.13049094,3345.1,3345.0,1.1]
[1722434912713,3.11993094,3345.1,3345.0,1.1]
[1722434912917,4.04232238,3345.1,3345.0,1.1]
[1722434913253,6.90127144,3345.1,3345.0,1.1]
[1722434913374,7.03177714,3345.1,3345.0,1.1]
[1722434914591,10.03177714,3345.1,3345.0,1.1]
[1722434915709,10.03177714,3345.1,3345.0,1.3]
[1722434916508,9.90127144,3345.1,3345.0,1.3]
[1722434916727,10.03177992,3345.1,3345.0,1.3]
[1722434918143,13.14632339,3345.1,3345.0,1.3]
[1722434918637,10.03177992,3345.1,3345.0,1.3]
[1722434919001,13.14632339,3345.1,3345.0,1.3]
[1722434919703,13.01581491,3345.1,3345.0,1.3]
[1722434920043,10.03178461,3345.1,3345.0,1.3]
[1722434921902,12.47448461,3345.1,3345.0,1.3]
[1722434923011,12.34397144,3345.1,3345.0,1.3]
[1722434923242,12.47448739,3345.1,3345.0,1.3]
[1722434924054,10.15675386,3345.1,3345.0,1.3]
[1722434924256,9.23436242,3345.1,3345.0,1.3]
[1722434924816,6.11995595,3345.1,3345.0,1.3]
[1722434925216,9.23438792,3345.1,3345.0,1.3]
[1722434925816,6.24494792,3345.1,3345.0,1.3]
[1722434926057,6.24494792,3345.1,3345.0,1.39810277]
[1722434926058,5.59506777,3345.1,3345.0,1.39810277]
[1722434926363,3.1305061,3345.1,3345.0,1.39810277]
[1722434926663,2.72564139,3345.1,3345.0,1.3]
[1722434926818,7.60181344,3345.1,3345.0,1.3]
[1722434927220,10.71624541,3345.1,3345.0,1.3]
[1722434928044,10.59125344,3345.1,3345.0,1.3]
[1722434928256,13.70568541,3345.1,3345.0,1.3]
[1722434928468,10.59125344,3345.1,3345.0,1.3]
[1722434929263,6.11479657,3345.1,3345.0,1.3]
[1722434929580,3.1305144,3345.1,3345.0,1.3]
[1722434929787,2.72611831,3345.1,3345.0,1.3]
[1722434929959,0.26102807,3345.1,3345.0,1.3]
[1722434930154,0.39153404,3345.1,3345.0,1.39808968]
[1722434930448,0.26102807,3345.1,3345.0,1.39808968]
[1722434931268,2.85663198,3345.1,3345.0,1.39808968]
[1722434932403,0.26102807,3345.1,3345.0,1.39808968]
[1722434932560,2.85637848,3345.1,3345.0,1.39808968]
[1722434932961,2.85637848,3345.1,3345.0,1.3]
[1722434933167,6.61060595,3345.1,3345.0,1.3]
[1722434933393,4.01525554,3345.1,3345.0,1.39808968]
[1722434933904,1.02581554,3345.1,3345.0,1.39808968]
[1722434934290,7.13005211,3345.1,3345.0,1.3]
[1722434934959,4.01525554,3345.1,3345.0,1.3]
[1722434935160,7.00469554,3345.1,3345.0,1.3]
[1722434935359,4.01525554,3345.1,3345.0,1.3]
[1722434935660,3.3763242,3345.1,3345.0,1.3]
[1722434935874,2.85678254,3345.1,3345.0,1.3]
[1722434936103,2.85678254,3345.1,3345.0,1.39808968]
[1722434936516,2.85691556,3345.1,3345.0,1.39808968]
[1722434936833,0.26102807,3345.1,3345.0,1.39808968]
[1722434937464,3.11529613,3345.2,3345.0,1.39808968]
[1722434937693,6.10456613,3345.3,3345.0,1.39808968]
[1722434937900,3.11529613,3345.2,3345.0,1.39808968]
[1722434938059,3.11529613,3345.2,3345.0,1.3]
[1722434938498,6.10456613,3345.3,3345.0,1.3]
[1722434938703,2.98944,3345.1,3345.0,1.3]
[1722434939206,5.97888,3345.1,3345.0,1.3]
[1722434939405,9.09417613,3345.1,3345.0,1.3]
[1722434939761,8.37208,3345.1,3345.0,1.3]
[1722434940016,9.59914796,3345.1,3345.0,1.3]
[1722434940311,12.72966079,3345.1,3345.0,1.3]
[1722434940666,12.59914796,3345.1,3345.0,1.3]
[1722434940877,12.72966097,3345.1,3345.0,1.3]
[1722434941114,9.74022097,3345.1,3345.0,1.3]
[1722434941467,9.74022061,3345.1,3345.0,1.3]
[1722434941863,3.0,3345.1,3345.0,1.3]
[1722434942149,6.11597795,3345.1,3345.0,1.39799806]
[1722434942789,2.98923,3345.4,3345.0,1.39799806]
[1722434942790,3.11597795,3345.3,3345.0,1.39799806]
[1722434942992,2.59643987,3345.1,3345.0,1.39799806]
[1722434943363,3.11597795,3345.3,3345.0,1.39799806]
[1722434943563,2.98944,3345.1,3345.0,1.39799806]
[1722434943783,2.98944,3345.1,3345.0,1.3]
[1722434943958,2.98944,3345.1,3345.0,1.39798824]
[1722434944164,6.10541795,3345.1,3345.0,1.39798824]
[1722434944507,8.52981795,3345.1,3345.0,1.3]
[1722434944660,6.10541795,3345.1,3345.0,1.3]
[1722434945061,3.11597795,3345.1,3345.0,1.3]
[1722434945811,3.11597795,3345.1,3345.0,0.3]
[1722434946019,3.11597795,3345.1,3345.0,0.5]
[1722434946216,3.11597795,3345.2,3345.0,0.5]
[1722434946517,3.11597795,3345.3,3345.0,0.5]
[1722434946666,3.11597795,3345.4,3345.0,0.5]
[1722434946862,2.98909,3345.5,3345.0,0.5]
[1722434946863,3.11597795,3345.3,3345.0,0.5]
[1722434947310,3.11597795,3345.2,3345.0,0.5]
[1722434947462,2.9894,3345.2,3345.0,0.5]
[1722434947659,2.9894,3345.2,3345.1,0.09796756]
[1722434947863,2.9894,3345.2,3345.0,0.5]
[1722434948104,3.11629757,3345.2,3345.1,0.09796756]
[1722434948262,3.11629757,3345.3,3345.1,0.09796756]
[1722434948463,3.11629757,3345.3,3345.0,0.5]
[1722434948673,2.98924,3345.4,3345.0,0.5]
[1722434948674,2.59667193,3345.1,3345.0,0.5]
[1722434948876,6.10553757,3345.4,3345.0,0.5]
[1722434948877,6.10556757,3345.3,3345.0,0.5]
[1722434949085,6.71612133,3345.3,3345.0,0.5]
[1722434949367,3.11629757,3345.2,3345.0,0.5]
[1722434949569,3.72685133,3345.3,3345.0,0.5]
[1722434949782,3.72685133,3345.3,3345.1,0.09796428]
[1722434949987,3.11629757,3345.2,3345.0,0.7]
[1722434950441,3.11629757,3345.2,3345.1,0.09796428]
[1722434950644,0.61054876,3345.2,3345.1,0.09796428]
[1722434950945,3.11629757,3345.2,3345.0,0.7]
[1722434951290,3.11629757,3345.2,3345.1,0.09796428]
[1722434951491,3.11695605,3345.2,3345.1,0.09796428]
[1722434952505,6.10623605,3345.3,3345.1,0.09796428]
[1722434952818,3.11695605,3345.2,3345.1,0.09796428]
[1722434953000,3.11695605,3345.2,3345.0,0.7]
[1722434953208,3.11695605,3345.2,3345.1,0.09796428]
[1722434954259,2.98918,3345.4,3345.1,0.09796428]
[1722434954462,3.11718061,3345.2,3345.0,0.9]
[1722434954606,3.11708271,3345.2,3345.0,0.9]
[1722434954802,3.11708271,3345.4,3345.1,0.48691238]
[1722434955005,2.59735575,3345.3,3345.2,2.98935]
[1722434955261,2.3635,3346.3,3345.2,2.98935]
[1722434955262,2.19839518,3345.4,3345.3,2.98919]
[1722434955457,2.19839518,3345.5,3345.4,2.98917]
[1722434955604,2.19839518,3345.6,3345.4,3.72918174]
[1722434955805,2.5968543,3345.8,3345.4,0.83793688]
[1722434956005,2.19744288,3345.5,3345.4,0.83793688]
[1722434956260,3.11708271,3346.1,3345.4,0.09792514]
[1722434956261,2.5968543,3345.7,3345.4,0.09792514]
[1722434956550,2.5968543,3345.7,3345.2,2.98934]
[1722434956551,2.5968543,3345.6,3345.2,2.98934]
[1722434956712,2.5968543,3345.7,3345.5,0.09792409]
[1722434956909,2.5968543,3345.7,3345.2,2.98934]
[1722434956910,2.5968543,3345.6,3345.2,2.98934]
[1722434957113,2.19734077,3345.3,3345.2,2.98934]
[1722434957346,3.11708271,3346.0,3345.2,3.9605081]
[1722434957347,2.19734077,3345.4,3345.2,3.9605081]
[1722434957541,5.35194,3346.3,3345.2,3.9605081]
[1722434957542,2.19734077,3345.5,3345.2,3.9605081]
[1722434958056,2.19734077,3345.4,3345.2,3.9605081]
[1722434958208,3.11708271,3346.0,3345.2,3.18934]
[1722434958434,2.19669019,3345.4,3345.2,3.18928]
[1722434958658,2.19669019,3345.4,3345.3,2.98925]
[1722434958955,2.19669019,3345.4,3345.2,0.2]
[1722434959261,2.19669019,3345.5,3345.2,3.18928]